Cogmind - Beta 16.1 @@@ ROGUE MODE // 2026.04.06 @ 09:57:45 Player: XBotDoesStuff Result: Destroyed by XL-AWU(j) with Overtuned Pulse Rifle Performance ------------- Evolutions (0) 0 Regions Visited (3) 600 Robots Destroyed (0) 0 Value Destroyed (0) 0 Prototype IDs (0) 0 Alien Tech Used (0) 0 Bonus (788) 788 TOTAL SCORE: 1388 Bonus ------- Registered with UFD 300 Met Optimus in HQ 500 Friendly Fire -12 Cogmind --------- Core Integrity 0/250 Matter 300/300 Energy 136/140 System Corruption 0% Temperature Cool (15) Movement Walking (100) Location -7/Scraptown Parts ------- > --- POWER (1) -------- Light Deuterium Engine > --- PROPULSION (2) --- Overtuned Titanium Leg > --- UTILITY (2) ------ Scrap Suit > --- WEAPON (2) ------- (None) > --- INVENTORY (5) ---- Flexi-carbon Leg Makeshift Microdissipator Network DRS Beacon (Ready) Peak State ------------ > --- POWER ------------ Ion Engine > --- PROPULSION ------- Aluminum Leg Flexi-carbon Leg > --- UTILITY ---------- Scrap Suit > --- WEAPON ----------- Small Laser Katana > --- INVENTORY -------- Light Ion Engine Aluminum Leg Aluminum Leg Aluminum Leg DRS Beacon [Rating: 20] Favorites ----------- Power Ion Engine Engine Ion Engine Propulsion Aluminum Leg Leg Aluminum Leg Utility Small Storage Unit Device Scrap Suit Storage Small Storage Unit Protection Core Shielding Weapon Katana Energy Gun Medium Laser Ballistic Gun Assault Rifle Slashing Weapon Katana Build | -11 -10 -10 -7 ------- Run | Yrd Mat Sub Scr Slots Evolved . | . . . . Power . | . . . . Propulsion . | . . . . Utility . | . . . . Weapon . | . . . . Parts Attached 15 | 5 2 1 7 Power 3 | 1 . 1 1 Engine 3 | 1 . 1 1 Core . | . . . . Reactor . | . . . . Propulsion 6 | 2 . . 4 Treads . | . . . . Leg 6 | 2 . . 4 Wheel . | . . . . Hover . | . . . . Flight . | . . . . Utility 3 | 1 1 . 1 Device 1 | . . . 1 Storage 1 | 1 . . . Processor . | . . . . Hackware . | . . . . Protection 1 | . 1 . . Artifact . | . . . . Weapon 3 | 1 1 . 1 Energy Gun 1 | . 1 . . Energy Cannon . | . . . . Ballistic Gun 1 | 1 . . . Ballistic Cannon . | . . . . Launcher . | . . . . Special Weapon . | . . . . Impact Weapon . | . . . . Slashing Weapon 1 | . . . 1 Piercing Weapon . | . . . . Special Melee Weapon . | . . . . Unidentified Prototypes . | . . . . Parts Lost 4 | . . . 4 Power 1 | . . . 1 Propulsion 1 | . . . 1 Utility . | . . . . Weapon 2 | . . . 2 Highest Loss Streak 4 | . . . 4 To Critical Strikes . | . . . . Average Backups 4 | 3 4 4 5 Power . | . 1 1 . Propulsion 2 | 1 2 2 3 Utility . | . . . . Weapon . | 1 1 1 . Tool/Special . | . . . . Unused Backups 5 | . . 1 4 Power 1 | . . . 1 Propulsion 3 | . . 1 2 Utility 1 | . . . 1 Weapon . | . . . . Tool/Special . | . . . . Average Slot Usage (%) 84 | . 94 100 77 Engine 13 | . 14 14 13 Leg 27 | . 28 28 27 Device 4 | . . . 6 Storage 9 | . 14 14 7 Protection 8 | . 9 14 7 Energy Gun 8 | . 14 14 6 Ballistic Gun 4 | . 14 14 . Slashing Weapon 5 | . . . 7 Peak Build Rating 20 | 5 7 7 20 Average Rating 11 | 3 6 7 13 On Entrance 4 | . 5 7 7 Avg Prop Armor Cover (%) . | . . . . Naked Turns . | . . . . Heaviest Build 15 | 10 13 15 15 Greatest Support 38 | 20 20 20 38 Greatest Overweight (x) . | . . . . Average Overweight (x) . | . . . . Largest Inventory Capacity 8 | 8 8 8 8 Average Capacity 6 | 6 8 8 6 Most Carried 8 | 5 5 5 8 Average Carried 5 | 3 4 4 5 Final Capacity 8 | 8 8 8 5 Final Carried 5 | 5 4 5 3 Scrap Suit Usage (%) 29 | . . . 45 Parts Cannibalized 3 | . . . 3 Class Distribution -------------------- 67% | Mutant 32% | Scrapper Dominant Class ---------------- Mutant | -10/Materials Mutant | -10/Subcaves Mutant | -7/Scraptown Resources | -11 -10 -10 -7 ----------- Run | Yrd Mat Sub Scr Matter Collected 352 | 210 72 10 60 Remotely . | . . . . Salvage Created . | . . . . Parts . | . . . . Haulers Intercepted . | . . . . Recyclers Shooed . | . . . . Parts Field Recycled . | . . . . Retrieved Matter . | . . . . Parts Self-Destructed . | . . . . Prevented . | . . . . Parts Restored . | . . . . Kills | -11 -10 -10 -7 ------- Run | Yrd Mat Sub Scr Combat Hostiles Destroyed . | . . . . Classes Destroyed . | . . . . Best Kill Streak . | . . . . Combat Bots Only . | . . . . Max Kills in Single Turn . | . . . . Gunslinging . | . . . . Exploded . | . . . . Melee . | . . . . Uniques/NPCs Destroyed . | . . . . Combat | -11 -10 -10 -7 -------- Run | Yrd Mat Sub Scr Hostile Shots Fired 84 | . 9 . 75 Missed 27 | . 4 . 23 Hits 57 | . 5 . 52 Projectile 57 | . 5 . 52 Critical Strikes 1 | . . . 1 Damage Taken 1011 | . 59 26 926 Core 261 | . . . 261 Absorbed by Shields . | . . . . Regen/Repaired (Parts) 25 | . . . 25 Core Remaining (%) 100 | 100 . . . Volleys Fired 4 | . 4 . . Largest 2 | . 2 . . Hottest 70 | . 70 . . Shots Fired 8 | . 8 . . Gun 8 | . 8 . . Cannon . | . . . . Launcher . | . . . . Special . | . . . . Kinetic 4 | . 4 . . Thermal 4 | . 4 . . Explosive . | . . . . Electromagnetic . | . . . . Robot Hit Streak 2 | . 2 . . Robot Miss Streak 2 | . 2 . . Penetration Max . | . . . . Secondary Targets . | . . . . Shots Hit Robots 4 | . 4 . . Core Hits 2 | . 2 . . Critical Kills . | . . . . Critical Parts Destroyed . | . . . . Critical Strikes . | . . . . Melee Attacks . | . . . . Impact . | . . . . Slashing . | . . . . Piercing . | . . . . Sneak Attacks . | . . . . Combat Hostiles . | . . . . Follow-up Attacks . | . . . . Damage Inflicted 78 | . 78 . . Guns 76 | . 76 . . Cannons . | . . . . Explosions . | . . . . Melee . | . . . . Ramming 2 | . 2 . . Kinetic 39 | . 39 . . Thermal 37 | . 37 . . Explosive . | . . . . Electromagnetic . | . . . . Impact . | . . . . Slashing . | . . . . Piercing . | . . . . Highest Corruption . | . . . . Average Corruption . | . . . . Corruption Purged . | . . . . Corruption Blocked . | . . . . Overload Shots . | . . . . Overflow Damage . | . . . . Projectiles . | . . . . Explosions . | . . . . Melee . | . . . . Knockbacks . | . . . . Impact . | . . . . Kinetic . | . . . . Secondary . | . . . . Self-Inflicted Damage . | . . . . Shots . | . . . . Rammed . | . . . . Targets Rammed 1 | . 1 . . Kicked 1 | . 1 . . Crushed . | . . . . Highest Temperature 45 | . 45 . 26 Average Temperature 16 | . 20 . 11 Received Heat Transfer 478 | . 33 . 445 Siege Activations . | . . . . Martial Activations . | . . . . Shielding Activations . | . . . . Robots Disrupted . | . . . . Combat Hostiles . | . . . . Robots Corrupted . | . . . . Combat Hostiles . | . . . . Parts Fried . | . . . . Impact Corruptions . | . . . . Robots Melted . | . . . . Combat Hostiles . | . . . . Parts Melted . | . . . . Heat Transferred 111 | . 111 . . Parts Sabotaged . | . . . . Parts Stolen . | . . . . Parts Stripped . | . . . . Power Chain Reactions . | . . . . Alert | -11 -10 -10 -7 ------- Run | Yrd Mat Sub Scr Maximum Alert Level . | . . . . Low Security (%) 100 | 100 100 . . Level 1 . | . . . . Level 2 . | . . . . Level 3 . | . . . . Level 4 . | . . . . Level 5 . | . . . . High Security . | . . . . Max Security . | . . . . Peak Influence 30 | . 30 . . Initial . | . . . . Average 4 | . 5 . . Influence Increases 30 | . 30 . . Lose Combat Pursuer 30 | . 30 . . Influence Decreases 30 | . 20 10 . Entered New Map 6 | . . 6 . Time Decay 24 | . 20 4 . Squads Dispatched 1 | . 1 . . Investigation . | . . . . Extermination . | . . . . Reinforcement 1 | . 1 . . Assault . | . . . . Garrison . | . . . . Intercept . | . . . . Searches Triggered . | . . . . Construction Impeded . | . . . . Haulers Reinforced . | . . . . Active Scanning Responses . | . . . . Cargo Convoy Interrupts . | . . . . Stealth | -11 -10 -10 -7 --------- Run | Yrd Mat Sub Scr Distress Signals 1 | . 1 . . Communications Jammed . | . . . . Distress Signals . | . . . . Times Spotted 18 | . 4 . 14 Peak Tracking Total 8 | . 4 . 8 Tactical Retreats 1 | . 1 . . Traps | -11 -10 -10 -7 ------- Run | Yrd Mat Sub Scr Traps Triggered 1 | . . 1 . Indirectly . | . . . . Trap Hack Attempts . | . . . . Triggered . | . . . . Disarmed . | . . . . Reprogrammed . | . . . . Reused . | . . . . Traps Extracted . | . . . . Installed . | . . . . Triggered . | . . . . Machines | -11 -10 -10 -7 ---------- Run | Yrd Mat Sub Scr Machines Disabled . | . . . . Max in Single Turn . | . . . . Machines Repaired . | . . . . Machines Dismantled . | . . . . Machines Sabotaged . | . . . . Overloaded Fab Kills . | . . . . Hacking | -11 -10 -10 -7 --------- Run | Yrd Mat Sub Scr Machines Accessed 3 | . . . 3 Terminals . | . . . . Fabricators . | . . . . Repair Stations . | . . . . Recycling Units . | . . . . Scanalyzers . | . . . . Garrison Access . | . . . . Total Hacks 14 | . . . 14 Successful 14 | . . . 14 Failed . | . . . . Catastrophic . | . . . . Database Lockouts . | . . . . Manual . | . . . . Terminals . | . . . . Fabricators . | . . . . Repair Stations . | . . . . Recycling Units . | . . . . Scanalyzers . | . . . . Garrison Access . | . . . . Terminal Hacks 14 | . . . 14 Record 14 | . . . 14 Fabricator Hacks . | . . . . Repair Station Hacks . | . . . . Recycling Unit Hacks . | . . . . Scanalyzer . | . . . . Garrison Access Hacks . | . . . . Unauthorized Hacks . | . . . . Terminals . | . . . . Fabricators . | . . . . Repair Stations . | . . . . Recycling Units . | . . . . Scanalyzers . | . . . . Garrison Access . | . . . . Data Cores Recovered . | . . . . Used . | . . . . Hacking Detections . | . . . . Full Trace Events . | . . . . Feedback Events . | . . . . Feedback Blocked . | . . . . Robot Schematics Acquired . | . . . . Robots Built . | . . . . Authchips . | . . . . Time . | . . . . Total Robot Build Rating . | . . . . Part Schematics Acquired . | . . . . Parts Built . | . . . . Authchips . | . . . . Time . | . . . . Total Part Build Rating . | . . . . Part Studies Acquired . | . . . . Parts Repaired . | . . . . Time . | . . . . Parts Recycled . | . . . . Recycled Matter . | . . . . Retrieved Matter . | . . . . Retrieved Components . | . . . . Parts Scanalyzed . | . . . . Part Schematics Acquired . | . . . . Parts Damaged . | . . . . Bothacking | -11 -10 -10 -7 ------------ Run | Yrd Mat Sub Scr Used RIF Installer . | . . . . Robots Hacked . | . . . . Non-combat . | . . . . Combat . | . . . . Robot Hacks Applied . | . . . . Relay Couplers Released . | . . . . Fabnet Peak Effective % . | . . . . Robots Rewired . | . . . . Allies Hacked . | . . . . Hacks Repelled . | . . . . Allies | -11 -10 -10 -7 -------- Run | Yrd Mat Sub Scr Total Allies . | . . . . Largest Group . | . . . . Highest-Rated Group . | . . . . Highest-Rated Ally . | . . . . Total Orders . | . . . . Ally Attacks . | . . . . Total Damage . | . . . . Kills . | . . . . Allies Corrupted . | . . . . Allies Melted 1 | . . . 1 Intel | -11 -10 -10 -7 ------- Run | Yrd Mat Sub Scr Active Infowar (turns) . | . . . . Robot Analysis Total . | . . . . Derelict Logs Recovered . | . . . . Drone Launches . | . . . . Drone Recoveries . | . . . . Exploration | -11 -10 -10 -7 ------------- Run | Yrd Mat Sub Scr Turns Passed 1315 | 57 159 242 857 Spaces Moved 980 | 40 107 131 702 Core 7 | 7 . . . Treads . | . . . . Legs 973 | 33 107 131 702 Wheels . | . . . . Hover . | . . . . Flight . | . . . . Fastest Speed 50 | 50 120 120 100 Average Speed 118 | 107 120 120 118 Slowest Speed 120 | 120 120 120 120 Overloaded Moves . | . . . . Propulsion Burnouts . | . . . . Robots Hopped . | . . . . Potential Cave-ins . | . . . . Cave-ins Triggered . | . . . . Exploration Rate (%) 19 | 3 23 10 43 Regions Visited 3 Branch Regions 2 Pre-discovered Areas . | . . . . Known Exits Taken . | . . . . Unknown Exits Taken 3 | 1 1 1 . Scrap Searched 3 | . . 1 2 Spaces Dug . | . . . . Terrain Destroyed . | . . . . Melee . | . . . . Projectile . | . . . . AOE . | . . . . Terrain Rammed . | . . . . Walls Destroyed . | . . . . Machines Disabled . | . . . . Actions | -11 -10 -10 -7 --------- Run | Yrd Mat Sub Scr Total 1128 | 54 129 216 729 Wait 95 | . 15 80 . Move 977 | 39 106 130 702 Hop . | . . . . Pick Up 22 | 10 1 3 8 Fast Attach 1 | . . . 1 Attach 9 | 5 2 . 2 Detach . | . . . . Swap 5 | . . 1 4 Drop 14 | . . 2 12 Fire 4 | . 4 . . Melee . | . . . . Ram . | . . . . Kick 1 | . 1 . . Crush . | . . . . Escape Stasis . | . . . . Rewire . | . . . . Trap . | . . . . Miscellaneous . | . . . . Route ------- -11/Scrapyard -10/Materials (discovered 2 exits: [*Min] / [*Sub]) -10/Subcaves -7/Scraptown (discovered 1 exit: [*Fac]) History --------- Turn | Location | Event 3 | -11/Scrapyard | Discovered new exit (range 16) 58 | -11/Scrapyard | Entered Materials 59 | -10/Materials | Met a group of wandering Federalists 135 | -10/Materials | Discovered new exit (range 15) 184 | -10/Materials | Discovered new exit (range 8) 217 | -10/Materials | Entered Subcaves 217 | -10/Subcaves | Accompanied by 1 ally 218 | -10/Subcaves | Continued accompanying wandering Federalists (4) 313 | -10/Subcaves | Build established: Mutant 429 | -10/Subcaves | Wandering Federalist uncovered a shortcut to Scraptown 459 | -10/Subcaves | Entered Scraptown 521 | -7/Scraptown | Heard Great Nut preacher, LISTEN AND RECITE! 635 | -7/Scraptown | Visited UFD Registry 645 | -7/Scraptown | Registered with UFD as "Rustbot" 708 | -7/Scraptown | Visited Science Testing Area 729 | -7/Scraptown | Visited Observation Area 795 | -7/Scraptown | Visited Derelict Rescue Squad 807 | -7/Scraptown | Found DRS Beacon 861 | -7/Scraptown | Discovered new exit (range 5) 906 | -7/Scraptown | Found Scrap Suit 977 | -7/Scraptown | Visited Cartography Club 1054 | -7/Scraptown | Met Optimus 1054 | -7/Scraptown | Accepted into 0bPrime 1177 | -7/Scraptown | Visited Junk Repository 1193 | -7/Scraptown | Build established: Scrapper 1210 | -7/Scraptown | Visited Curators Association 1220 | -7/Scraptown | Civil war broke out across Scraptown 1302 | -7/Scraptown | Core integrity fell below 50% 1312 | -7/Scraptown | Core integrity fell below 20% 1316 | -7/Scraptown | Destroyed by XL-AWU(j) with Overtuned Pulse Rifle Last Messages --------------- Bolt penetrates Machine. Z4-CQ6(E) destroyed. Bolt penetrates Machine. Penetrated by Bolt. Machine disabled. Acquired 10 matter. Penetrated by Bolt. R6-VRF(j) heat spikes uncontrollably. R6-VRF(j) overheating. Ion Engine destroyed. Penetrated by Bolt. 6D-PGZ(j): "0bPrime and our allies are ready to strike fear into MC's aging processors, join us and win!" Critical hit (Burn: +50). LN-0S8(j) destroyed. Ovr. Titanium Leg destroyed. 7J-825(j): "0bPrime holds too much power!" Sml. Laser destroyed. 7J-825(j) suffers critical hit (Burn). Map ----- +----------------------------------------------------+ | | | | | | | | | | | | | | | | | | | | | ?????????????????????????????????????????????????? | | ?????????????????????????????????????????????????? | | ?????????????????????????????????????????????????? | | ?????????????????????????????????????????????????? | | ?????????????????????????????????????????????????? | | ?????????????????????????????????????????????????? | | ?????????????????????????????????????????????????? | | ?????????????????????????????????????????????????? | | ?????????????????????????????????????????????????? | | ?????????????????????????????????????????????????? | | ?????????????????????????????????????????????????? | | ???????????????????????#####?????????????????????? | | ???????????????????????#"""#?????????????????????? | | ###########???####?????#"==#?????????????????????? | | ##""|##"""#??## ##????#%<*#?????????????????????? | | ##""|##! "#### ######j@ ##????????????????????? | | =! ! !*= !=j!%p #????????????????????? | | ! ! = [!*!! =!!= #????????????????????? | | ############## !!!###########????????????????????? | | ?????????????##[=##??????????????????????????????? | | ##??###########%%#???????????????????????????????? | | "#??#""""""""##%*#???????????????????????????????? | | "#??#" "&&& "#%!!#??#????????????????????????????? | | "#??#" "##%!#?# ????????????????????????????? | | "#??#"" ""##[=#?# ##??????????????????????????? | | "#??#" "#=!%#?? ###????????????????????????? | | "#??#"" ""##==#??# #X#????????????????????????? | | "#??#" "##%&#### ###????????????????????????? | | "#??#"" ""##!=# #????????????????????????? | | "#??# ##!=###### #######??????????????????? | | "#??# #[%[# #??????????????????? | | #??# #!=!# #??????????????????? | | ##??##### ####"%*## ###########??????????????????? | | ######### ####"!=## ##???###?????????????????????? | | """"""""" """"" "*"#??? ??????????????????????? | | !%[ [%"#?? "??????????????????????? | | =!"#?? ""???#?????????????????? | | "#?" "" #?????????????????? | | %! "##" " ??????????????????? | | ! [%= " ""???????????????????? | +----------------------------------------------------+ Best States ------------- Heat Dissipation 25 Energy Generation 14 Energy Capacity 250 Matter Stores 300 Matter Capacity 300 Sight Range 16 Terrain Scan Density 10 Core Shielding 20 Evasion (%) 55 Item Schematics ----------------- None Robot Schematics ------------------ None Fabricated ------------ Nothing Repaired ---------- Nothing Studied --------- None Alien Tech Used ----------------- None Achievements -------------- Civilization 2243 Link The Feds Challenges ------------ None Game ------ Seed MultitargetingSmartSabre Manual? 0 Play Time 00:23:26 Cumulative 8.1 hours Start 2026.04.06 @ 00:31:45 End 2026.04.06 @ 09:57:45 Sessions 3 Manual Loads 0 Difficulty Rogue Special Mode None Game No. 31 Rogue 31 Adventurer 0 Explorer 0 Win Type - Total 0 Types 0/0/0/0/0/0/0/0/0/0 Lore% 12 Gallery% 18 Achievement% 14 Wizard Run 0 Options --------- Layout 1 ASCII 0 Keyboard 0 Movement Mouse Keybinds 0 Fullscreen 2 Font 24/Smallcaps Map View 50x40 Zoom Use 0% Tactical HUD 0 Map Filters NONE Filters NONE Steam 1 RUN: 6d45af0e-ee1a-48ba-9bc0-deb25a40c4e6